[Event "Swedish Chess Championship 2019: Weekend 1"]
[Site "Stiga Sports Arena, Arenatorget 1, Eskilstuna, Sweden"]
[Date "2019.07.06"]
[Round "2.8"]
[White "Thollin, Robert"]
[Black "Johansson, Mathias"]
[Result "1/2-1/2"]
[TimeControl "90 minutes + 30 seconds per move from move one"]
[WhiteFideId "1701630"]
[BlackFideId "1723324"]
[WhiteElo "1983"]
[BlackElo "1912"]

1. e4 {[%clk 01:26:23]} {[%emt 00:04:35]} e6 {[%clk 01:30:56]} {[%emt
00:00:06]} 2. d4 {[%clk 01:26:17]} {[%emt 00:00:36]} d5 {[%clk 01:31:20]}
{[%emt 00:00:06]} 3. exd5 {[%clk 01:26:04]} {[%emt 00:00:42]} exd5 {[%clk
01:31:45]} {[%emt 00:00:06]} 4. Nc3 {[%clk 01:26:29]} {[%emt 00:00:06]} Nc6
{[%clk 01:30:35]} {[%emt 00:01:40]} 5. Be3 {[%clk 01:25:49]} {[%emt 00:01:09]}
Nf6 {[%clk 01:29:49]} {[%emt 00:01:17]} 6. Bb5 {[%clk 01:24:00]} {[%emt
00:02:18]} a6 {[%clk 01:18:11]} {[%emt 00:12:09]} 7. Bxc6+ {[%clk 01:23:11]}
{[%emt 00:01:19]} bxc6 {[%clk 01:18:36]} {[%emt 00:00:04]} 8. Nge2 {[%clk
01:19:09]} {[%emt 00:04:31]} Bd6 {[%clk 01:18:01]} {[%emt 00:01:06]} 9. Qd2
{[%clk 01:16:28]} {[%emt 00:03:11]} Rb8 {[%clk 01:13:11]} {[%emt 00:05:21]} 10.
Rb1 {[%clk 01:15:13]} {[%emt 00:01:44]} Bf5 {[%clk 01:11:23]} {[%emt 00:02:19]}
11. Ng3 {[%clk 01:09:16]} {[%emt 00:06:26]} Bg6 {[%emt 00:05:17]} 12. O-O
{[%clk 01:09:16]} {[%emt 00:00:30]} O-O {[%clk 00:58:45]} {[%emt 00:08:23]} 13.
Nce2 {[%clk 01:04:06]} {[%emt 00:05:38]} Qd7 {[%clk 00:52:57]} {[%emt
00:06:20]} 14. Nf4 {[%clk 00:59:11]} {[%emt 00:05:24]} Ne4 {[%clk 00:50:14]}
{[%emt 00:03:13]} 15. Qd1 {[%clk 00:53:45]} {[%emt 00:05:55]} Nxg3 {[%clk
00:49:01]} {[%emt 00:01:44]} 16. fxg3 {[%clk 00:45:30]} {[%emt 00:08:44]} Be4
{[%clk 00:46:45]} {[%emt 00:02:45]} 17. Nd3 {[%clk 00:44:45]} {[%emt 00:01:15]}
Rfe8 {[%clk 00:45:59]} {[%emt 00:01:17]} 18. Qd2 {[%clk 00:44:00]} {[%emt
00:01:15]} Qe7 {[%clk 00:38:56]} {[%emt 00:07:34]} 19. Rfe1 {[%clk 00:38:16]}
{[%emt 00:06:12]} Bxd3 {[%clk 00:37:26]} {[%emt 00:02:00]} 20. Qxd3 {[%clk
00:38:42]} {[%emt 00:00:05]} Qe4 {[%clk 00:36:30]} {[%emt 00:01:25]} 1/2-1/2

[Event "Swedish Chess Championship 2019: Weekend 1"]
[Site "Stiga Sports Arena, Arenatorget 1, Eskilstuna, Sweden"]
[Date "2019.07.06"]
[Round "2.9"]
[White "Nyberg, Stefan"]
[Black "Johansson, Roy"]
[Result "0-1"]
[TimeControl "90 minutes + 30 seconds per move from move one"]
[WhiteFideId "1737171"]
[BlackFideId "1745972"]
[WhiteElo "1921"]
[BlackElo "1932"]

1. d4 {[%clk 01:30:30]} {[%emt 00:00:29]} f5 {[%clk 01:30:50]} {[%emt
00:00:11]} 2. Nf3 {[%clk 01:29:33]} {[%emt 00:01:27]} Nf6 {[%clk 01:31:02]}
{[%emt 00:00:18]} 3. g3 {[%clk 01:29:54]} {[%emt 00:00:09]} g6 {[%clk
01:31:27]} {[%emt 00:00:05]} 4. Bg2 {[%clk 01:30:15]} {[%emt 00:00:09]} Bg7
{[%clk 01:31:41]} {[%emt 00:00:17]} 5. O-O {[%clk 01:30:40]} {[%emt 00:00:05]}
O-O {[%clk 01:32:07]} {[%emt 00:00:04]} 6. c4 {[%clk 01:28:20]} {[%emt
00:02:50]} d6 {[%clk 01:32:30]} {[%emt 00:00:07]} 7. Nc3 {[%clk 01:28:37]}
{[%emt 00:00:12]} Nc6 {[%clk 01:32:50]} {[%emt 00:00:11]} 8. Rb1 {[%clk
01:24:00]} {[%emt 00:05:06]} e5 {[%clk 01:32:38]} {[%emt 00:00:41]} 9. dxe5
{[%clk 01:16:20]} {[%emt 00:08:10]} dxe5 {[%clk 01:32:57]} {[%emt 00:00:11]} 10.
Be3 {[%clk 00:57:10]} {[%emt 00:19:40]} Be6 {[%clk 01:23:08]} {[%emt 00:10:20]}
11. b3 {[%clk 00:45:03]} {[%emt 00:12:37]} h6 {[%clk 01:22:22]} {[%emt
00:01:15]} 12. Bc5 {[%clk 00:37:56]} {[%emt 00:07:37]} Rf7 {[%clk 01:20:48]}
{[%emt 00:02:03]} 13. Nh4 {[%clk 00:35:30]} {[%emt 00:02:55]} Kh7 {[%clk
01:18:46]} {[%emt 00:02:32]} 14. Bxc6 {[%clk 00:30:11]} {[%emt 00:05:50]} bxc6
{[%clk 01:19:00]} {[%emt 00:00:13]} 15. Qxd8 {[%clk 00:30:15]} {[%emt
00:00:29]} Rxd8 {[%clk 01:19:17]} {[%emt 00:00:13]} 16. Bxa7 {[%clk 00:29:35]}
{[%emt 00:01:11]} Nd7 {[%clk 01:17:29]} {[%emt 00:02:18]} 17. Be3 {[%clk
00:16:14]} {[%emt 00:13:51]} e4 {[%clk 01:13:32]} {[%emt 00:04:27]} 18. Na4
{[%clk 00:16:21]} {[%emt 00:00:24]} Ra8 {[%clk 01:11:38]} {[%emt 00:02:24]} 19.
Rbc1 {[%clk 00:15:00]} {[%emt 00:01:50]} Be5 {[%clk 01:08:36]} {[%emt
00:03:32]} 20. Rfd1 {[%clk 00:11:56]} {[%emt 00:03:35]} g5 {[%clk 01:07:55]}
{[%emt 00:01:10]} 21. Ng2 {[%clk 00:12:11]} {[%emt 00:00:16]} f4 {[%clk
01:07:54]} {[%emt 00:00:31]} 22. Bd4 {[%clk 00:11:56]} {[%emt 00:00:45]} Bd6
{[%clk 01:07:11]} {[%emt 00:01:13]} 23. e3 {[%clk 00:07:34]} {[%emt 00:04:52]}
Bg4 {[%clk 01:04:46]} {[%emt 00:02:54]} 24. Re1 {[%clk 00:07:04]} {[%emt
00:01:00]} f3 {[%clk 01:04:35]} {[%emt 00:00:41]} 25. Nc3 {[%clk 00:05:39]}
{[%emt 00:01:56]} c5 {[%clk 01:02:10]} {[%emt 00:02:54]} 26. Na4 {[%emt
00:00:46]} 0-1

[Event "Swedish Chess Championship 2019: Weekend 1"]
[Site "Stiga Sports Arena, Arenatorget 1, Eskilstuna, Sweden"]
[Date "2019.07.06"]
[Round "2.10"]
[White "Svedberg, Hans"]
[Black "Bjornvall, Tord"]
[Result "1/2-1/2"]
[TimeControl "90 minutes + 30 seconds per move from move one"]
[WhiteFideId "1705113"]
[BlackFideId "1716557"]
[WhiteElo "1993"]
[BlackElo "1997"]

1. b3 {[%clk 01:30:49]} {[%emt 00:00:10]} Nc6 {[%clk 01:30:47]} {[%emt
00:00:13]} 2. Bb2 {[%clk 01:30:39]} {[%emt 00:00:40]} e5 {[%clk 01:30:18]}
{[%emt 00:00:58]} 3. e3 {[%clk 01:30:53]} {[%emt 00:00:17]} d5 {[%clk
01:30:07]} {[%emt 00:00:42]} 4. Bb5 {[%clk 01:30:43]} {[%emt 00:00:40]} Bd6
{[%clk 01:27:10]} {[%emt 00:03:27]} 5. Bxc6+ {[%clk 01:27:07]} {[%emt
00:04:06]} bxc6 {[%clk 01:27:27]} {[%emt 00:00:13]} 6. Ne2 {[%clk 01:24:46]}
{[%emt 00:02:50]} Ne7 {[%clk 01:22:37]} {[%emt 00:05:20]} 7. c4 {[%clk
01:17:16]} {[%emt 00:08:00]} O-O {[%clk 01:17:00]} {[%emt 00:06:06]} 8. Qc2
{[%clk 00:53:52]} {[%emt 00:23:55]} Bf5 {[%clk 01:11:03]} {[%emt 00:06:26]} 9.
d3 {[%clk 00:45:43]} {[%emt 00:08:40]} dxc4 {[%clk 01:10:40]} {[%emt 00:00:52]}
10. Qxc4 {[%clk 00:42:58]} {[%emt 00:03:17]} Bxd3 {[%clk 01:10:52]} {[%emt
00:00:17]} 11. Qc1 {[%clk 00:33:32]} {[%emt 00:09:56]} Qd7 {[%clk 00:54:45]}
{[%emt 00:16:37]} 12. f3 {[%clk 00:16:42]} {[%emt 00:17:21]} Nd5 {[%clk
00:43:46]} {[%emt 00:11:27]} 13. Kf2 {[%clk 00:14:16]} {[%emt 00:02:57]} Nb4
{[%clk 00:41:56]} {[%emt 00:02:20]} 14. Rd1 {[%clk 00:12:30]} {[%emt 00:02:17]}
Ba6 {[%clk 00:40:19]} {[%emt 00:02:06]} 15. Qc3 {[%clk 00:11:19]} {[%emt
00:01:41]} Nd5 {[%clk 00:36:40]} {[%emt 00:04:08]} 16. Qa5 {[%clk 00:10:46]}
{[%emt 00:01:05]} Bb5 {[%clk 00:35:28]} {[%emt 00:01:41]} 17. Nbc3 {[%clk
00:07:53]} {[%emt 00:03:25]} Nxe3 {[%clk 00:32:06]} {[%emt 00:03:51]} 18. Rd2
{[%clk 00:02:19]} {[%emt 00:06:05]} Nf5 {[%clk 00:27:57]} {[%emt 00:04:38]} 19.
Nxb5 {[%clk 00:02:08]} {[%emt 00:00:42]} cxb5 {[%clk 00:27:48]} {[%emt
00:00:37]} 20. Bxe5 {[%clk 00:01:34]} {[%emt 00:01:05]} Qe7 {[%clk 00:22:26]}
{[%emt 00:05:52]} 21. Bxd6 {[%clk 00:01:33]} {[%emt 00:00:32]} Qe3+ {[%clk
00:22:25]} {[%emt 00:00:29]} 22. Kf1 {[%clk 00:01:32]} {[%emt 00:00:33]} cxd6
{[%clk 00:22:13]} {[%emt 00:00:41]} 23. Qc3 {[%clk 00:01:23]} {[%emt 00:00:39]}
Qb6 {[%clk 00:20:56]} {[%emt 00:01:47]} 24. Nd4 {[%clk 00:01:45]} {[%emt
00:00:09]} Rac8 {[%clk 00:20:14]} {[%emt 00:01:11]} 25. Qd3 {[%clk 00:02:00]}
{[%emt 00:00:16]} Nxd4 {[%clk 00:18:58]} {[%emt 00:01:46]} 26. Qxd4 {[%clk
00:02:27]} {[%emt 00:00:03]} Qa5 {[%clk 00:18:01]} {[%emt 00:01:27]} 27. Re1
{[%clk 00:02:15]} {[%emt 00:00:41]} Rfe8 {[%clk 00:17:22]} {[%emt 00:01:09]} 28.
Rxe8+ {[%clk 00:02:19]} {[%emt 00:00:26]} Rxe8 {[%clk 00:17:43]} {[%emt
00:00:09]} 29. Qxd6 {[%clk 00:02:43]} {[%emt 00:00:07]} Qc3 {[%clk 00:17:34]}
{[%emt 00:00:37]} 30. Qd4 {[%clk 00:02:24]} {[%emt 00:00:51]} Qc1+ {[%clk
00:16:26]} {[%emt 00:01:37]} 31. Rd1 {[%clk 00:02:48]} {[%emt 00:00:06]} Qc2
{[%clk 00:16:04]} {[%emt 00:00:52]} 32. Qd2 {[%clk 00:03:08]} {[%emt 00:00:11]}
Qc7 {[%clk 00:15:25]} {[%emt 00:01:08]} 33. Qd7 {[%clk 00:03:13]} {[%emt
00:00:25]} 1/2-1/2

[Event "Swedish Chess Championship 2019: Weekend 1"]
[Site "Stiga Sports Arena, Arenatorget 1, Eskilstuna, Sweden"]
[Date "2019.07.06"]
[Round "2.11"]
[White "Johansson, Sven"]
[Black "Forsberg, Andre"]
[Result "1-0"]
[TimeControl "90 minutes + 30 seconds per move from move one"]
[WhiteFideId "1716301"]
[BlackFideId "1724193"]
[WhiteElo "1927"]
[BlackElo "1982"]

1. d4 {[%clk 01:29:25]} {[%emt 00:01:34]} Nf6 {[%clk 01:30:53]} {[%emt
00:00:07]} 2. Bf4 {[%clk 01:29:51]} {[%emt 00:00:05]} c5 {[%clk 01:31:16]}
{[%emt 00:00:07]} 3. d5 {[%clk 01:30:01]} {[%emt 00:00:19]} Qb6 {[%clk
01:30:56]} {[%emt 00:00:49]} 4. Nf3 {[%clk 01:10:15]} {[%emt 00:20:17]} Qxb2
{[%clk 01:23:07]} {[%emt 00:08:19]} 5. Be5 {[%clk 01:09:26]} {[%emt 00:01:19]}
Qb6 {[%clk 01:23:19]} {[%emt 00:00:17]} 6. Nc3 {[%clk 01:08:29]} {[%emt
00:01:28]} d6 {[%clk 01:22:20]} {[%emt 00:01:29]} 7. Rb1 {[%clk 01:07:47]}
{[%emt 00:01:12]} Qa5 {[%clk 01:21:07]} {[%emt 00:01:42]} 8. Rb5 {[%clk
01:02:26]} {[%emt 00:05:52]} Qc7 {[%clk 01:21:22]} {[%emt 00:00:16]} 9. Bg3
{[%clk 01:01:23]} {[%emt 00:01:32]} a6 {[%clk 01:21:23]} {[%emt 00:00:29]} 10.
Rb3 {[%clk 00:58:49]} {[%emt 00:03:05]} b5 {[%clk 01:20:05]} {[%emt 00:01:49]}
11. e4 {[%clk 00:50:03]} {[%emt 00:09:15]} b4 {[%clk 01:17:47]} {[%emt
00:02:49]} 12. e5 {[%clk 00:48:42]} {[%emt 00:01:51]} Nh5 {[%clk 01:17:06]}
{[%emt 00:01:10]} 13. Ne4 {[%clk 00:46:15]} {[%emt 00:02:58]} Nxg3 {[%clk
01:17:07]} {[%emt 00:00:29]} 14. hxg3 {[%clk 00:45:16]} {[%emt 00:01:30]} Bf5
{[%clk 01:10:22]} {[%emt 00:07:14]} 15. Neg5 {[%clk 00:43:38]} {[%emt
00:02:07]} dxe5 {[%clk 01:04:27]} {[%emt 00:06:25]} 16. Nh4 {[%clk 00:41:36]}
{[%emt 00:02:32]} e6 {[%clk 00:46:45]} {[%emt 00:18:12]} 17. Bc4 {[%clk
00:38:24]} {[%emt 00:03:43]} Bd6 {[%clk 00:21:03]} {[%emt 00:26:12]} 18. dxe6
{[%clk 00:37:25]} {[%emt 00:01:29]} fxe6 {[%clk 00:20:29]} {[%emt 00:01:04]} 19.
Nxf5 {[%clk 00:37:30]} {[%emt 00:00:25]} exf5 {[%clk 00:20:35]} {[%emt
00:00:24]} 20. Nf7 {[%clk 00:37:18]} {[%emt 00:00:42]} 1-0

[Event "Swedish Chess Championship 2019: Weekend 1"]
[Site "Stiga Sports Arena, Arenatorget 1, Eskilstuna, Sweden"]
[Date "2019.07.06"]
[Round "2.12"]
[White "Mitra, Akash"]
[Black "Berglund, Nils-Erik"]
[Result "1-0"]
[TimeControl "90 minutes + 30 seconds per move from move one"]
[WhiteFideId "1726714"]
[BlackFideId "1710494"]
[WhiteElo "1957"]
[BlackElo "1926"]

1. e4 {[%clk 01:26:14]} {[%emt 00:11:38]} e6 {[%clk 01:30:55]} {[%emt
00:00:05]} 2. Nf3 {[%clk 01:26:11]} {[%emt 00:00:33]} d5 {[%clk 01:31:14]}
{[%emt 00:00:11]} 3. Nc3 {[%clk 01:26:35]} {[%emt 00:00:06]} c5 {[%clk
01:27:31]} {[%emt 00:04:14]} 4. exd5 {[%clk 01:26:56]} {[%emt 00:00:09]} exd5
{[%clk 01:27:55]} {[%emt 00:00:06]} 5. Bb5+ {[%clk 01:27:12]} {[%emt 00:00:13]}
Nc6 {[%clk 01:23:31]} {[%emt 00:04:55]} 6. Qe2+ {[%clk 01:27:21]} {[%emt
00:00:21]} Be6 {[%clk 00:42:17]} {[%emt 00:41:45]} 7. d4 {[%clk 01:24:16]}
{[%emt 00:03:34]} Be7 {[%clk 00:41:28]} {[%emt 00:01:19]} 8. O-O {[%clk
01:22:35]} {[%emt 00:02:10]} a6 {[%clk 00:36:15]} {[%emt 00:05:43]} 9. Bxc6+
{[%clk 01:19:24]} {[%emt 00:03:41]} bxc6 {[%clk 00:36:44]} {[%emt 00:00:02]} 10.
dxc5 {[%clk 01:19:24]} {[%emt 00:00:30]} Bf6 {[%clk 00:37:03]} {[%emt
00:00:11]} 11. Be3 {[%clk 01:17:44]} {[%emt 00:01:50]} Ne7 {[%clk 00:36:57]}
{[%emt 00:00:56]} 12. Bd4 {[%clk 01:17:53]} {[%emt 00:00:21]} Nf5 {[%clk
00:36:50]} {[%emt 00:00:37]} 13. Bxf6 {[%clk 01:17:06]} {[%emt 00:01:17]} Qxf6
{[%clk 00:37:13]} {[%emt 00:00:08]} 14. Qe5 {[%clk 01:14:49]} {[%emt 00:02:47]}
Qxe5 {[%clk 00:37:29]} {[%emt 00:00:14]} 15. Nxe5 {[%emt 00:00:09]} Rc8 {[%clk
00:37:50]} {[%emt 00:00:06]} 16. Ne2 {[%clk 01:13:37]} {[%emt 00:02:05]} f6
{[%clk 00:36:36]} {[%emt 00:01:44]} 17. Nd3 {[%clk 01:13:08]} {[%emt 00:00:58]}
Kf7 {[%clk 00:35:44]} {[%emt 00:01:23]} 18. h3 {[%clk 01:08:33]} {[%emt
00:05:04]} Rhe8 {[%clk 00:34:33]} {[%emt 00:01:41]} 19. Rfe1 {[%clk 01:07:14]}
{[%emt 00:01:49]} Bd7 {[%clk 00:29:57]} {[%emt 00:05:07]} 20. g4 {[%clk
01:05:39]} {[%emt 00:02:04]} Nh4 {[%clk 00:29:06]} {[%emt 00:01:22]} 21. Nd4
{[%clk 01:05:41]} {[%emt 00:00:28]} Re4 {[%clk 00:28:26]} {[%emt 00:01:10]} 22.
Rxe4 {[%clk 01:01:43]} {[%emt 00:04:28]} dxe4 {[%clk 00:28:49]} {[%emt
00:00:06]} 23. Nf4 {[%clk 01:00:10]} {[%emt 00:02:02]} g5 {[%clk 00:26:14]}
{[%emt 00:03:06]} 24. Nh5 {[%clk 00:58:59]} {[%emt 00:01:41]} Re8 {[%clk
00:25:39]} {[%emt 00:01:05]} 25. Re1 {[%clk 00:57:02]} {[%emt 00:02:25]} Kg6
{[%clk 00:25:46]} {[%emt 00:00:25]} 26. Ng3 {[%clk 00:57:18]} {[%emt 00:00:14]}
Re5 {[%clk 00:22:20]} {[%emt 00:03:57]} 27. b4 {[%clk 00:53:45]} {[%emt
00:04:02]} Nf3+ {[%clk 00:18:04]} {[%emt 00:04:45]} 28. Nxf3 {[%clk 00:53:50]}
{[%emt 00:00:25]} exf3 {[%clk 00:18:30]} {[%emt 00:00:04]} 29. Rxe5 {[%clk
00:52:36]} {[%emt 00:01:44]} fxe5 {[%clk 00:18:58]} {[%emt 00:00:02]} 30. Ne4
{[%clk 00:51:59]} {[%emt 00:01:06]} Be6 {[%clk 00:19:06]} {[%emt 00:00:23]} 31.
a4 {[%clk 00:52:06]} {[%emt 00:00:22]} Bc4 {[%clk 00:19:22]} {[%emt 00:00:15]}
32. Nd2 {[%clk 00:52:24]} {[%emt 00:00:11]} Be2 {[%clk 00:19:30]} {[%emt
00:00:23]} 33. Nb3 {[%clk 00:48:29]} {[%emt 00:04:24]} Bc4 {[%clk 00:10:00]}
{[%emt 00:10:00]} 34. Na5 {[%clk 00:48:03]} {[%emt 00:00:56]} Bd5 {[%clk
00:10:27]} {[%emt 00:00:04]} 35. c4 {[%clk 00:48:21]} {[%emt 00:00:12]} 1-0

[Event "Swedish Chess Championship 2019: Weekend 1"]
[Site "Stiga Sports Arena, Arenatorget 1, Eskilstuna, Sweden"]
[Date "2019.07.06"]
[Round "3.1"]
[White "Mardell, Jonas"]
[Black "Westerberg, Jonathan"]
[Result "1/2-1/2"]
[TimeControl "90 minutes + 30 seconds per move from move one"]
[BlackTitle "IM"]
[WhiteFideId "1705636"]
[BlackFideId "1701754"]
[WhiteElo "2024"]
[BlackElo "2546"]

1. e4 {[%clk 01:30:58]} c5 {[%clk 01:30:46]} {[%emt 00:00:14]} 2. c3 {[%clk
01:31:17]} {[%emt 00:00:11]} Nf6 {[%clk 01:30:06]} {[%emt 00:01:10]} 3. e5
{[%clk 01:31:40]} {[%emt 00:00:08]} Nd5 {[%clk 01:30:31]} {[%emt 00:00:04]} 4.
d4 {[%clk 01:32:05]} {[%emt 00:00:06]} cxd4 {[%clk 01:30:39]} {[%emt 00:00:22]}
5. Qxd4 {[%clk 01:32:10]} {[%emt 00:00:25]} e6 {[%clk 01:30:17]} {[%emt
00:00:51]} 6. Bc4 {[%clk 01:32:34]} {[%emt 00:00:07]} Nc6 {[%clk 01:29:50]}
{[%emt 00:00:57]} 7. Qe4 {[%clk 01:32:57]} {[%emt 00:00:06]} f5 {[%clk
01:30:14]} {[%emt 00:00:06]} 8. Qe2 {[%clk 01:33:16]} {[%emt 00:00:12]} Nde7
{[%clk 01:29:29]} {[%emt 00:01:14]} 9. f4 {[%clk 01:28:25]} {[%emt 00:05:22]}
g5 {[%clk 01:24:48]} {[%emt 00:05:11]} 10. Qh5+ {[%clk 01:16:25]} {[%emt
00:12:29]} Ng6 {[%clk 01:25:12]} {[%emt 00:00:06]} 11. g4 {[%clk 01:16:38]}
{[%emt 00:00:18]} gxf4 {[%clk 01:19:39]} {[%emt 00:06:03]} 12. Nf3 {[%clk
01:07:50]} {[%emt 00:09:17]} fxg4 {[%clk 01:12:09]} {[%emt 00:08:00]} 13. Bd3
{[%clk 01:06:30]} {[%emt 00:01:50]} Nce7 {[%clk 00:40:51]} {[%emt 00:31:48]} 14.
Rg1 {[%clk 00:49:31]} {[%emt 00:17:29]} Nf5 {[%clk 00:30:54]} {[%emt 00:10:28]}
15. Rxg4 {[%clk 00:47:11]} {[%emt 00:02:50]} Bg7 {[%clk 00:26:30]} {[%emt
00:04:53]} 16. Ng5 {[%clk 00:33:44]} {[%emt 00:13:57]} Qa5 {[%clk 00:26:55]}
{[%emt 00:00:08]} 17. Bxf4 {[%clk 00:22:53]} {[%emt 00:11:20]} Kd8 {[%clk
00:24:54]} {[%emt 00:02:31]} 18. Nf7+ {[%clk 00:19:19]} {[%emt 00:04:04]} Kc7
{[%clk 00:25:17]} {[%emt 00:00:07]} 19. Bxf5 {[%clk 00:15:38]} {[%emt
00:04:12]} exf5 {[%clk 00:24:22]} {[%emt 00:01:25]} 20. Rxg6 {[%clk 00:14:52]}
{[%emt 00:01:16]} hxg6 {[%clk 00:23:13]} {[%emt 00:01:39]} 21. Qxg6 {[%clk
00:15:04]} {[%emt 00:00:18]} Qd5 {[%clk 00:21:58]} {[%emt 00:01:46]} 22. e6+
{[%clk 00:06:58]} {[%emt 00:08:39]} d6 {[%clk 00:21:57]} {[%emt 00:00:27]} 23.
Qxg7 {[%clk 00:06:37]} {[%emt 00:00:52]} Qxe6+ {[%clk 00:11:48]} {[%emt
00:10:39]} 24. Kd1 {[%clk 00:05:04]} {[%emt 00:02:03]} Bd7 {[%clk 00:07:29]}
{[%emt 00:04:48]} 25. Bxd6+ {[%clk 00:04:39]} {[%emt 00:00:55]} Kc6 {[%clk
00:06:02]} {[%emt 00:01:57]} 26. Qd4 {[%clk 00:02:57]} {[%emt 00:02:12]} b6
{[%clk 00:05:05]} {[%emt 00:01:27]} 27. Nxh8 {[%clk 00:02:14]} {[%emt
00:01:13]} Be8 {[%clk 00:04:49]} {[%emt 00:00:46]} 28. Nd2 {[%clk 00:01:51]}
{[%emt 00:00:54]} Qxd6 {[%clk 00:04:12]} {[%emt 00:01:06]} 29. Qc4+ {[%clk
00:01:08]} {[%emt 00:01:17]} Kb7 {[%clk 00:03:50]} {[%emt 00:00:48]} 30. Nf7
{[%clk 00:01:06]} {[%emt 00:00:32]} Qf6 {[%clk 00:01:29]} {[%emt 00:02:51]} 31.
Qd5+ {[%clk 00:00:54]} {[%emt 00:00:42]} Bc6 {[%clk 00:01:57]} {[%emt
00:00:01]} 32. Nd6+ {[%clk 00:01:12]} {[%emt 00:00:12]} Kc7 {[%clk 00:02:24]}
{[%emt 00:00:04]} 33. Nb5+ {[%clk 00:01:06]} {[%emt 00:00:35]} Kb7 {[%clk
00:02:05]} {[%emt 00:00:53]} 34. Qf7+ {[%clk 00:01:00]} {[%emt 00:00:32]} Qxf7
{[%clk 00:02:20]} {[%emt 00:00:20]} 35. Nd6+ {[%clk 00:01:26]} {[%emt
00:00:17]} Kc7 {[%clk 00:02:47]} 36. Nxf7 {[%clk 00:01:53]} Re8 {[%clk
00:03:01]} {[%emt 00:00:29]} 37. Kc2 {[%clk 00:01:52]} {[%emt 00:00:47]} Re2
{[%clk 00:03:30]} 38. Rf1 {[%clk 00:01:25]} {[%emt 00:05:05]} Rxh2 {[%clk
00:03:58]} 39. Ng5 {[%clk 00:01:32]} Bd7 {[%clk 00:03:34]} 40. Rf4 {[%clk
00:01:18]} Kd6 {[%clk 00:03:35]} 41. Rd4+ {[%clk 00:01:12]} {[%emt 00:00:03]}
Ke7 {[%clk 00:04:04]} 42. Ngf3 {[%clk 00:01:23]} Rf2 {[%clk 00:03:17]} 43. Ne5
{[%clk 00:01:29]} {[%emt 00:00:17]} Be8 {[%clk 00:03:18]} {[%emt 00:00:29]} 44.
c4 {[%clk 00:01:37]} {[%emt 00:00:23]} Ke6 {[%clk 00:03:03]} {[%emt 00:00:44]}
45. Nd3 {[%clk 00:02:01]} {[%emt 00:00:07]} Rh2 {[%clk 00:03:31]} {[%emt
00:00:02]} 46. Kc3 {[%clk 00:02:14]} {[%emt 00:00:17]} Bc6 {[%clk 00:03:29]}
{[%emt 00:00:32]} 47. b4 {[%clk 00:01:40]} {[%emt 00:01:05]} Rh1 {[%clk
00:02:11]} {[%emt 00:01:48]} 48. c5 {[%clk 00:01:43]} {[%emt 00:00:27]} bxc5
{[%clk 00:01:55]} {[%emt 00:00:46]} 49. bxc5 {[%clk 00:01:30]} {[%emt
00:00:43]} Ke7 {[%clk 00:02:14]} {[%emt 00:00:11]} 50. Nb3 {[%clk 00:01:12]}
{[%emt 00:00:48]} Rh2 {[%clk 00:02:01]} {[%emt 00:00:43]} 51. Na5 {[%clk
00:00:59]} {[%emt 00:00:43]} Be4 {[%clk 00:01:45]} {[%emt 00:00:46]} 52. a4
{[%clk 00:01:11]} {[%emt 00:00:18]} Rh6 {[%clk 00:02:08]} {[%emt 00:00:05]} 53.
Kc4 {[%clk 00:01:16]} {[%emt 00:00:26]} a6 {[%clk 00:01:38]} {[%emt 00:01:01]}
54. Ne5 {[%clk 00:01:05]} {[%emt 00:00:40]} Rh1 {[%clk 00:01:53]} {[%emt
00:00:15]} 55. Nac6+ {[%clk 00:01:09]} {[%emt 00:00:26]} Kf6 {[%clk 00:02:10]}
{[%emt 00:00:13]} 56. Nd7+ {[%clk 00:00:53]} {[%emt 00:00:46]} Kg5 {[%clk
00:02:21]} {[%emt 00:00:19]} 57. Ne7 {[%clk 00:00:39]} {[%emt 00:00:45]} Rh7
{[%clk 00:01:42]} {[%emt 00:01:09]} 58. Nc8 {[%clk 00:00:41]} {[%emt 00:00:28]}
Bc6 {[%clk 00:01:55]} {[%emt 00:00:17]} 59. Ncb6 {[%clk 00:00:47]} {[%emt
00:00:24]} f4 {[%clk 00:02:18]} {[%emt 00:00:06]} 60. Rd6 {[%clk 00:01:00]}
{[%emt 00:00:18]} Bg2 {[%clk 00:02:35]} {[%emt 00:00:11]} 61. c6 {[%clk
00:00:43]} {[%emt 00:00:48]} f3 {[%clk 00:01:57]} {[%emt 00:01:09]} 62. Rf6
{[%clk 00:00:52]} {[%emt 00:00:22]} f2 {[%clk 00:01:22]} {[%emt 00:01:04]} 63.
Rxf2 {[%clk 00:00:48]} {[%emt 00:00:35]} Bxc6 {[%clk 00:01:50]} 64. Nc5 {[%clk
00:00:58]} {[%emt 00:00:20]} Rh4+ {[%clk 00:02:08]} {[%emt 00:00:11]} 65. Kb3
{[%clk 00:01:11]} {[%emt 00:00:18]} a5 {[%clk 00:02:37]} {[%emt 00:00:01]} 66.
Nc4 {[%clk 00:01:13]} {[%emt 00:00:27]} Bd5 {[%clk 00:02:45]} {[%emt 00:00:22]}
67. Rc2 {[%clk 00:01:04]} {[%emt 00:00:40]} Rd4 {[%clk 00:01:37]} {[%emt
00:01:38]} 68. Na6 {[%clk 00:00:50]} {[%emt 00:00:44]} Rd3+ {[%clk 00:01:56]}
{[%emt 00:00:10]} 69. Rc3 {[%clk 00:01:05]} {[%emt 00:00:16]} Rxc3+ {[%clk
00:02:24]} {[%emt 00:00:02]} 70. Kxc3 {[%clk 00:01:29]} {[%emt 00:00:06]} Bc6
{[%clk 00:02:52]} {[%emt 00:00:02]} 71. Kb3 {[%clk 00:01:38]} {[%emt 00:00:22]}
Bxa4+ {[%clk 00:03:15]} {[%emt 00:00:07]} 72. Kxa4 {[%clk 00:02:02]} {[%emt
00:00:06]} Kf5 {[%clk 00:03:42]} {[%emt 00:00:03]} 73. Kxa5 {[%clk 00:02:27]}
{[%emt 00:00:05]} Ke4 {[%clk 00:04:08]} {[%emt 00:00:03]} 74. Nc5+ {[%clk
00:02:49]} {[%emt 00:00:09]} Kd5 {[%clk 00:04:25]} {[%emt 00:00:13]} 1/2-1/2